Cogmind - Beta 14 @@@ ROGUE MODE // 2024.09.09 @ 18:39:28 Player: BionicBot Result: Destroyed by D-53 Grenadier with Mini Grenade Launcher Performance ------------- Evolutions (0) 0 Regions Visited (2) 400 Robots Destroyed (24) 120 Value Destroyed (434) 434 Prototype IDs (0) 0 Alien Tech Used (0) 0 Bonus (0) 0 TOTAL SCORE: 954 Bonus ------- None Cogmind --------- Core Integrity 0/250 Matter 300/300 Energy 99/100 System Corruption 0% Temperature Cool (0) Movement Core (350) Ox6 Location -10/Mines Parts ------- > --- POWER (1) -------- (None) > --- PROPULSION (2) --- (None) > --- UTILITY (2) ------ Large Storage Unit Signal Interpreter > --- WEAPON (2) ------- (None) > --- INVENTORY (15) --- Light Ion Engine Flight Unit Flight Unit Flight Unit Flight Unit Small Storage Unit Medium Storage Unit Light Armor Plating Light Assault Rifle Light Assault Rifle Light Assault Rifle Mining Claw Peak State ------------ > --- POWER ------------ Ion Engine > --- PROPULSION ------- Light Treads Compact Wheel > --- UTILITY ---------- Large Storage Unit Signal Interpreter > --- WEAPON ----------- Beam Cannon Beam Cannon > --- INVENTORY -------- Light Ion Engine Flight Unit Flight Unit Flight Unit Flight Unit Small Storage Unit Medium Storage Unit Light Assault Rifle Light Assault Rifle Light Assault Rifle Mining Claw [Rating: 8] Favorites ----------- Power Ion Engine Engine Ion Engine Propulsion Light Treads Treads Light Treads Wheel Compact Wheel Utility Large Storage Unit Device Seismic Detector Storage Large Storage Unit Processor Signal Interpreter Weapon Beam Cannon Energy Cannon Beam Cannon Ballistic Gun Light Assault Rifle Build | -11 -10 -10 ------- Run | Yrd Mat Min Slots Evolved . | . . . Power . | . . . Propulsion . | . . . Utility . | . . . Weapon . | . . . Parts Attached 12 | 7 5 . Power 1 | 1 . . Engine 1 | 1 . . Core . | . . . Reactor . | . . . Propulsion 3 | 2 1 . Treads 2 | 2 . . Leg . | . . . Wheel 1 | . 1 . Hover . | . . . Flight . | . . . Utility 4 | 2 2 . Device 1 | 1 . . Storage 2 | 1 1 . Processor 1 | . 1 . Hackware . | . . . Protection . | . . . Artifact . | . . . Weapon 4 | 2 2 . Energy Gun . | . . . Energy Cannon 2 | . 2 . Ballistic Gun 2 | 2 . . Ballistic Cannon . | . . . Launcher . | . . . Special Weapon . | . . . Impact Weapon . | . . . Slashing Weapon . | . . . Piercing Weapon . | . . . Special Melee Weapon . | . . . Unidentified Prototypes . | . . . Parts Lost 7 | . 2 5 Power 1 | . . 1 Propulsion 3 | . 1 2 Utility 1 | . 1 . Weapon 2 | . . 2 Highest Loss Streak 5 | . 1 5 To Critical Strikes . | . . . Average Slot Usage (%) 96 | . 95 98 Engine 14 | . 14 14 Treads 20 | . 22 13 Wheel 4 | . 1 14 Device 5 | . 6 . Storage 14 | . 14 14 Processor 8 | . 6 14 Energy Cannon 21 | . 19 27 Ballistic Gun 6 | . 8 . Peak Build Rating 8 | 7 8 8 Average Rating 7 | 5 7 7 On Entrance 5 | . 7 8 Naked Turns . | . . . Heaviest Build 32 | 13 32 31 Greatest Support 40 | 40 40 16 Greatest Overweight (x) 6 | . 1 6 Average Overweight (x) . | . . 1 Largest Inventory Capacity 15 | 8 15 15 Average Capacity 13 | 7 13 15 Most Carried 12 | 2 12 12 Average Carried 8 | 1 8 12 Final Capacity 15 | 8 15 15 Final Carried 12 | 2 12 12 Class Distribution -------------------- 100% | Mutant Dominant Class ---------------- Mutant | -10/Materials Mutant | -10/Mines Resources | -11 -10 -10 ----------- Run | Yrd Mat Min Matter Collected 413 | 251 162 . Remotely . | . . . Salvage Created 681 | 39 642 . Parts 59 | 8 51 . Haulers Intercepted 1 | . 1 . Recyclers Shooed 1 | . 1 . Parts Field Recycled . | . . . Retrieved Matter . | . . . Parts Self-Destructed . | . . . Prevented . | . . . Kills | -11 -10 -10 ------- Run | Yrd Mat Min Combat Hostiles Destroyed 17 | . 17 . Guns 1 | . 1 . Cannons 15 | . 15 . Classes Destroyed 8 | 1 7 . Builder 1 | . 1 . Tunneler 2 | 2 . . Hauler 1 | . 1 . Recycler 1 | . 1 . Operator 1 | . 1 . Watcher 1 | . 1 . Swarmer 9 | . 9 . Grunt 8 | . 8 . Best Kill Streak 6 | 2 6 . Combat Bots Only 5 | . 5 . Max Kills in Single Turn 2 | 1 2 . Gunslinging . | . . . Exploded . | . . . Melee . | . . . Uniques/NPCs Destroyed . | . . . Combat | -11 -10 -10 -------- Run | Yrd Mat Min Hostile Shots Fired 91 | . 83 8 Missed 21 | . 20 1 Damage Taken 902 | . 629 273 Core 263 | . 157 106 Absorbed by Shields . | . . . Core Remaining (%) 100 | 100 . . Volleys Fired 55 | 6 48 1 Largest 2 | 2 2 1 Hottest 120 | 40 120 60 Shots Fired 109 | 12 96 1 Gun 19 | 12 7 . Cannon 90 | . 89 1 Launcher . | . . . Special . | . . . Kinetic 19 | 12 7 . Thermal 90 | . 89 1 Explosive . | . . . Electromagnetic . | . . . Robot Hit Streak 8 | 6 8 . Robot Miss Streak 13 | 3 13 1 Penetration Max . | . . . Secondary Targets . | . . . Shots Hit Robots 48 | 7 41 . Core Hits 27 | 3 24 . Critical Kills 1 | . 1 . Critical Parts Destroyed . | . . . Critical Strikes 1 | . 1 . Meltdown 1 | . 1 . Melee Attacks . | . . . Impact . | . . . Slashing . | . . . Piercing . | . . . Sneak Attacks . | . . . Combat Hostiles . | . . . Follow-up Attacks . | . . . Damage Inflicted 810 | 59 751 . Guns 94 | 59 35 . Cannons 716 | . 716 . Explosions . | . . . Melee . | . . . Ramming . | . . . Kinetic 94 | 59 35 . Thermal 716 | . 716 . Explosive . | . . . Electromagnetic . | . . . Impact . | . . . Slashing . | . . . Piercing . | . . . Highest Corruption . | . . . Average Corruption . | . . . Corruption Purged . | . . . Corruption Blocked . | . . . Overload Shots . | . . . Overflow Damage . | . . . Projectiles . | . . . Explosions . | . . . Melee . | . . . Knockbacks . | . . . Impact . | . . . Kinetic . | . . . Secondary . | . . . Self-Inflicted Damage . | . . . Shots . | . . . Rammed . | . . . Targets Rammed . | . . . Kicked . | . . . Crushed . | . . . Highest Temperature 556 | . 556 24 Average Temperature 195 | . 196 21 Received Heat Transfer 174 | . 165 9 Effects 11 | . 11 . Shutdowns 4 | . 4 . Energy Bleed 2 | . 2 . Matter Decay 2 | . 2 . Damage (minor) 1 | . 1 . Damage (major) 1 | . 1 . Damage (core) 1 | . 1 . Siege Activations . | . . . Robots Corrupted . | . . . Combat Hostiles . | . . . Parts Fried . | . . . Impact Corruptions . | . . . Robots Melted 1 | . 1 . Combat Hostiles 1 | . 1 . Parts Melted 3 | . 3 . Heat Transferred 1517 | . 1517 . Parts Sabotaged . | . . . Parts Stolen . | . . . Parts Stripped . | . . . Power Chain Reactions . | . . . Alert | -11 -10 -10 ------- Run | Yrd Mat Min Peak Influence 322 | 10 322 66 Initial 66 | . 6 66 Average 108 | 4 137 65 Maximum Alert Level 1 | . 1 . Low Security (%) 76 | 100 65 100 Level 1 23 | . 34 . Level 2 . | . . . Level 3 . | . . . Level 4 . | . . . Level 5 . | . . . High Security . | . . . Max Security . | . . . Squads Dispatched 3 | . 3 . Investigation 1 | . 1 . Extermination . | . . . Reinforcement 2 | . 2 . Assault . | . . . Garrison . | . . . Intercept . | . . . Searches Triggered . | . . . Construction Impeded . | . . . Haulers Reinforced . | . . . Active Scanning Responses . | . . . Cargo Convoy Interrupts . | . . . Stealth | -11 -10 -10 --------- Run | Yrd Mat Min Distress Signals 2 | . 2 . Communications Jammed . | . . . Distress Signals . | . . . Times Spotted 32 | . 28 4 Peak Tracking Total 6 | . 6 4 Tactical Retreats 1 | . 1 . Traps | -11 -10 -10 ------- Run | Yrd Mat Min Traps Triggered 1 | . 1 . Indirectly . | . . . Trap Hack Attempts . | . . . Triggered . | . . . Disarmed . | . . . Reprogrammed . | . . . Reused . | . . . Traps Extracted . | . . . Installed . | . . . Triggered . | . . . Machines | -11 -10 -10 ---------- Run | Yrd Mat Min Machines Disabled . | . . . Max in Single Turn . | . . . Machines Repaired . | . . . Machines Dismantled . | . . . Machines Sabotaged . | . . . Overloaded Fab Kills . | . . . Hacking | -11 -10 -10 --------- Run | Yrd Mat Min Machines Accessed 2 | . 2 . Terminals 2 | . 2 . Fabricators . | . . . Repair Stations . | . . . Recycling Units . | . . . Scanalyzers . | . . . Garrison Access . | . . . Total Hacks 7 | . 7 . Successful 1 | . 1 . Failed 6 | . 6 . Catastrophic . | . . . Database Lockouts . | . . . Manual 7 | . 7 . Terminals 7 | . 7 . Fabricators . | . . . Repair Stations . | . . . Recycling Units . | . . . Scanalyzers . | . . . Garrison Access . | . . . Terminal Hacks . | . . . Fabricator Hacks . | . . . Repair Station Hacks . | . . . Recycling Unit Hacks . | . . . Scanalyzer . | . . . Garrison Access Hacks . | . . . Unauthorized Hacks 1 | . 1 . Terminals 1 | . 1 . Botnet 1 | . 1 . Fabricators . | . . . Repair Stations . | . . . Recycling Units . | . . . Scanalyzers . | . . . Garrison Access . | . . . Data Cores Recovered . | . . . Used . | . . . Hacking Detections 2 | . 2 . Full Trace Events . | . . . Feedback Events . | . . . Feedback Blocked . | . . . Robot Schematics Acquired . | . . . Robots Built . | . . . Authchips . | . . . Time . | . . . Total Robot Build Rating . | . . . Part Schematics Acquired . | . . . Parts Built . | . . . Authchips . | . . . Time . | . . . Total Part Build Rating . | . . . Parts Repaired . | . . . Time . | . . . Parts Recycled . | . . . Recycled Matter . | . . . Retrieved Matter . | . . . Retrieved Components . | . . . Parts Scanalyzed . | . . . Part Schematics Acquired . | . . . Parts Damaged . | . . . Bothacking | -11 -10 -10 ------------ Run | Yrd Mat Min Used RIF Installer . | . . . Robots Hacked . | . . . Non-combat . | . . . Combat . | . . . Robot Hacks Applied . | . . . Relay Couplers Released . | . . . Fabnet Peak Effective % . | . . . Robots Rewired . | . . . Allies Hacked . | . . . Hacks Repelled . | . . . Allies | -11 -10 -10 -------- Run | Yrd Mat Min Total Allies . | . . . Largest Group . | . . . Highest-Rated Group . | . . . Highest-Rated Ally . | . . . Total Orders . | . . . Ally Attacks . | . . . Total Damage . | . . . Kills . | . . . Allies Corrupted . | . . . Allies Melted . | . . . Intel | -11 -10 -10 ------- Run | Yrd Mat Min Robot Analysis Total . | . . . Derelict Logs Recovered 1 | . . 1 Drone Launches . | . . . Drone Recoveries . | . . . Exploration | -11 -10 -10 ------------- Run | Yrd Mat Min Turns Passed 1161 | 135 810 216 Spaces Moved 641 | 70 391 180 Core 5 | 4 . 1 Treads 372 | 66 306 . Legs . | . . . Wheels 264 | . 85 179 Hover . | . . . Flight . | . . . Fastest Speed 50 | 50 115 115 Average Speed 148 | 153 162 116 Slowest Speed 350 | 160 240 350 Overloaded Moves . | . . . Propulsion Burnouts . | . . . Robots Hopped . | . . . Cave-ins Triggered . | . . . Exploration Rate (%) 35 | 4 70 32 Regions Visited 2 Branch Regions 1 Pre-discovered Areas 1 | . . 1 Known Exits Taken 1 | . 1 . Unknown Exits Taken 1 | 1 . . Scrap Searched . | . . . Spaces Dug . | . . . Terrain Destroyed . | . . . Melee . | . . . Projectile . | . . . AOE . | . . . Terrain Rammed . | . . . Walls Destroyed . | . . . Machines Disabled . | . . . Actions | -11 -10 -10 --------- Run | Yrd Mat Min Total 743 | 84 470 189 Wait 25 | . 17 8 Move 639 | 69 390 180 Hop . | . . . Pick Up 10 | 2 8 . Fast Attach 10 | 7 3 . Attach 1 | . 1 . Detach 2 | . 2 . Swap 1 | . 1 . Drop . | . . . Fire 55 | 6 48 1 Melee . | . . . Ram . | . . . Kick . | . . . Crush . | . . . Escape Stasis . | . . . Rewire . | . . . Trap . | . . . Miscellaneous . | . . . Route ------- -11/Scrapyard -10/Materials (discovered 3 exits: *Mat x2 / *Min) -10/Mines (discovered 1 exit: *Mat) History --------- Turn | Location | Event 8 | -11/Scrapyard | Discovered new exit (range 15) 136 | -11/Scrapyard | Entered Materials 318 | -10/Materials | Build established: Mutant 339 | -10/Materials | Discovered new exit (range 5) 454 | -10/Materials | Discovered new exit (range 6) 569 | -10/Materials | Identified exit to Mines 659 | -10/Materials | Core integrity fell below 50% 695 | -10/Materials | Discovered new exit (range 16) 743 | -10/Materials | Identified exit to Materials 946 | -10/Materials | Entered Mines 956 | -10/Mines | Discovered exit to Materials (range 15) 961 | -10/Mines | Learned location of Zion (-6) 1107 | -10/Mines | Assembled infested the area 1161 | -10/Mines | Core integrity fell below 20% 1162 | -10/Mines | Destroyed by D-53 Grenadier with Mini Grenade Launcher Last Messages --------------- GOAL=ESCAPE Something is scanning the area. 00956_ EXIT=FOUND: MATERIALS 00961_ Acquired derelict log, extracted data. World map updated: -6/Zion. 00974_ K-01 Serf cleans the Plasma Injector. 00978_ K-01 Serf collects debris. 00982_ K-01 Serf cleans the Plasma Injector. 00988_ K-01 Serf collects debris. 01017_ K-01 Serf cleans the Plasma Injector. 01042_ K-01 Serf collects debris. 01107_ ALERT: Infestation in the mines, dispatching Demolisher response squad. 01151_ C-30 ARC bursts open, deploying its payload. 01151_ D-53 Grenadier unfolds itself. 01158_ Lgt. Treads destroyed. 01158_ Beam Cannon destroyed. 01160_ Ion Engine destroyed. 01160_ Com. Wheel destroyed. 01162_ The unstable cave ceiling collapses. Map ----- +----------------------------------------------------+ | ??????????????????????????????????????????? | | ??????????????????????????????????????????? | | ?????????????????????????? ?#?????????????? | | ????????????????????????? #????????????? | | ????????????????????????? ?????????????? | | ????????????????????????? ??????????????? | | ????????????????????????# ??????????????? | | ???????????????????????# ???????????????? | | ?????????????????????## #???????????????? | | ?????????????????????#% #???????????????? | | ?????????????????????# ????????????????? | | ?????????????????????# ?????????????????? | | ????????????????####?# #?????????????????? | | ??????????????### ### #?????????????????? | | ?????????????## ## #?????????????????? | | ?????????????# #?????????????????? | | ?????????????# ### #?????????????????? | | ?????????????# ##?# ########??????????? | | ?????????????# #??# #????????? | | ?????????????# ##??#d ########??????????? | | ?????????????# ##???# d###???????????????? | | ?????????????# ##???# ####???#????????? | | ?????????????# ##??# # ##? #????????? | | ?????????????## ##?# #? #####????? | | ??????????????## ### # #????? | | ??????????????## ## @ # """#????? | | ?????????????## ## gg """#????? | | ????????????## ## # """#????? | | ????????????# ## #????? | | ???????????## ## ## # #????? | | ??????????## #### #### #####? #????? | | ?????????## ##??## #??###?????? #????? | | ????????## #????###??????????? ####????? | | ????????# #???????????????????#???????? | | ????????## #???????????????????????????? | | ?????????### #???????????????????????????? | | ???????????# #???????????????????????????? | | ?########### #???????????????????????????? | | ?# #???????????????????????????? | | ?# #???????????????????????????? | | ?# ###########???????????????????????????? | | ?# #?????????????????????????????????????? | | ?# #?????????????????????????????????????? | | ?# #?????????????????????????????????????? | | ## #?????????????????????????????????????? | | #?????????????????????????????????????? | | #?????????????????????????????????????? | | < #?????????????????????????????????????? | | #?????????????????????????????????????? | | ##?????????????????????????????????????? | +----------------------------------------------------+ Best States ------------- Heat Dissipation 25 Energy Generation 10 Energy Capacity 250 Matter Stores 300 Matter Capacity 300 Sight Range 16 Terrain Scan Density 10 Evasion (%) 40 Recoil Reduction 2 Item Schematics ----------------- None Robot Schematics ------------------ None Fabricated ------------ Nothing Alien Tech Used ----------------- None Achievements -------------- None Challenges ------------ None Game ------ Seed TeslaConstructSteel Manual? 0 Play Time 00:08:35 Cumulative 98.1 hours Start 2024.09.09 @ 18:32:03 End 2024.09.09 @ 18:39:28 Sessions 1 Manual Loads 0 Difficulty Rogue Special Mode None Game No. 76 Rogue 76 Adventurer 0 Explorer 0 Win Type - Total 2 Types 2/0/0/0/0/0/0/0/0 Lore% 20 Gallery% 46 Achievement% 44 Wizard Run 0 Options --------- Layout 0 ASCII 0 Keyboard 1 Movement Numpad Keybinds 0 Fullscreen 2 Font 18/SmallcapsGlow Map View 76x50 Zoom Use 0% Tactical HUD 1 Map Filters NONE Filters NONE Steam 1 RUN: 702421c2-5897-440f-957b-3ab54623c008